[Event "Titled Tuesday Blitz July 13 2021"]
[White "Liu, Manli"]
[Black "Siniauski, Artsiom"]
[WhiteFideId "8608121"]
[BlackFideId "13512269"]
[WhiteElo "2061"]
[BlackElo "2210"]
[Result "0-1"]
[Round "10"]
[TimeControl "180+1"]
[Date "2021.07.13"]
[WhiteClock "0:00:10"]
[BlackClock "0:00:07"]

1. e4 {[%clk 0:03:00]}  e6 {[%clk 0:02:57]} 2. d4 {[%clk 0:03:00]}  d5 {[%clk 0:02:57]} 3. Nd2 {[%clk 0:03:00]}  c5 {[%clk 0:02:57]} 4. exd5 {[%clk 0:02:59]}  Qxd5 {[%clk 0:02:58]} 5. Ngf3 {[%clk 0:02:59]}  cxd4 {[%clk 0:02:58]} 6. Bc4 {[%clk 0:02:59]}  Qd8 {[%clk 0:02:58]} 7. O-O {[%clk 0:02:58]}  Nc6 {[%clk 0:02:57]} 8. Nb3 {[%clk 0:02:58]}  a6 {[%clk 0:02:56]} 9. Nbxd4 {[%clk 0:02:56]}  Nxd4 {[%clk 0:02:57]} 10. Nxd4 {[%clk 0:02:50]}  Bd6 {[%clk 0:02:56]} 11. Re1 {[%clk 0:02:47]}  Ne7 {[%clk 0:02:56]} 12. Bb3 {[%clk 0:02:16]}  O-O {[%clk 0:02:55]} 13. c3 {[%clk 0:02:13]}  Ng6 {[%clk 0:02:54]} 14. Qf3 {[%clk 0:02:10]}  Qc7 {[%clk 0:02:41]} 15. h3 {[%clk 0:02:08]}  Bd7 {[%clk 0:02:34]} 16. Be3 {[%clk 0:01:57]}  Rfd8 {[%clk 0:02:32]} 17. Rad1 {[%clk 0:01:56]}  Be8 {[%clk 0:02:32]} 18. Bg5 {[%clk 0:01:54]}  Be7 {[%clk 0:02:29]} 19. Bxe7 {[%clk 0:01:50]}  Qxe7 {[%clk 0:02:30]} 20. Qe4 {[%clk 0:01:47]}  Rac8 {[%clk 0:02:27]} 21. Rd3 {[%clk 0:01:20]}  b5 {[%clk 0:01:28]} 22. Nxe6 {[%clk 0:00:44]}  fxe6 {[%clk 0:00:51]} 23. Bxe6+ {[%clk 0:00:29]}  Bf7 {[%clk 0:00:15]} 24. Bxc8 {[%clk 0:00:20]}  Rxd3 {[%clk 0:00:14]} 25. Qxe7 {[%clk 0:00:18]}  Nxe7 {[%clk 0:00:14]} 26. Rxe7 {[%clk 0:00:18]}  Rd1+ {[%clk 0:00:15]} 27. Kh2 {[%clk 0:00:18]}  Rd2 {[%clk 0:00:16]} 28. Rd7 {[%clk 0:00:16]}  Rxd7 {[%clk 0:00:12]} 29. Bxd7 {[%clk 0:00:16]}  Bxa2 {[%clk 0:00:13]} 30. b4 {[%clk 0:00:16]}  Kf7 {[%clk 0:00:09]} 31. Bc8 {[%clk 0:00:16]}  Kf6 {[%clk 0:00:09]} 32. Bxa6 {[%clk 0:00:16]}  Bc4 {[%clk 0:00:10]} 33. f4 {[%clk 0:00:14]}  Kf5 {[%clk 0:00:10]} 34. Kg3 {[%clk 0:00:09]}  Ke4 {[%clk 0:00:10]} 35. Kg4 {[%clk 0:00:07]}  Kd3 {[%clk 0:00:10]} 36. Bc8 {[%clk 0:00:08]}  Kxc3 {[%clk 0:00:10]} 37. Bf5 {[%clk 0:00:08]}  h6 {[%clk 0:00:06]} 38. Be4 {[%clk 0:00:07]}  Kxb4 {[%clk 0:00:06]} 39. Kf5 {[%clk 0:00:07]}  Bf7 {[%clk 0:00:05]} 40. Ke5 {[%clk 0:00:07]}  Kc5 {[%clk 0:00:05]} 41. f5 {[%clk 0:00:08]}  b4 {[%clk 0:00:05]} 42. f6 {[%clk 0:00:08]}  gxf6+ {[%clk 0:00:06]} 43. Kxf6 {[%clk 0:00:09]}  Bd5 {[%clk 0:00:07]} 44. Bd3 {[%clk 0:00:08]}  Bxg2 {[%clk 0:00:06]} 45. h4 {[%clk 0:00:08]}  Kd4 {[%clk 0:00:06]} 46. Bb1 {[%clk 0:00:07]}  Be4 {[%clk 0:00:05]} 47. Ba2 {[%clk 0:00:07]}  Bd5 {[%clk 0:00:03]} 48. Bb1 {[%clk 0:00:07]}  b3 {[%clk 0:00:04]} 49. Kg7 {[%clk 0:00:07]}  Be4 {[%clk 0:00:04]} 50. Bxe4 {[%clk 0:00:07]}  Kxe4 {[%clk 0:00:05]} 51. Kxh6 {[%clk 0:00:08]}  b2 {[%clk 0:00:06]} 52. Kg7 {[%clk 0:00:09]}  b1=Q {[%clk 0:00:06]} 53. h5 {[%clk 0:00:10]}  Qb7+ {[%clk 0:00:07]} 0-1


[Site "https://www.chess.com"]

[Event "Titled Tuesday Blitz July 13 2021"]
[White "Madaminov, Mukhiddin"]
[Black "Bortnyk, Olexandr"]
[WhiteFideId "14210703"]
[BlackFideId "14120828"]
[WhiteElo "1747"]
[BlackElo "2723"]
[Result "0-1"]
[Round "10"]
[TimeControl "180+1"]
[Date "2021.07.13"]
[WhiteClock "0:02:03"]
[BlackClock "0:02:09"]

1. e4 {[%clk 0:03:00]}  Nf6 {[%clk 0:02:58]} 2. e5 {[%clk 0:02:58]}  Nd5 {[%clk 0:02:58]} 3. d4 {[%clk 0:02:59]}  d6 {[%clk 0:02:58]} 4. Nf3 {[%clk 0:02:58]}  dxe5 {[%clk 0:02:58]} 5. Nxe5 {[%clk 0:02:56]}  c6 {[%clk 0:02:56]} 6. Nc3 {[%clk 0:02:54]}  Nd7 {[%clk 0:02:49]} 7. Nxd5 {[%clk 0:02:48]}  cxd5 {[%clk 0:02:46]} 8. Nxd7 {[%clk 0:02:47]}  Bxd7 {[%clk 0:02:43]} 9. Bd3 {[%clk 0:02:43]}  g6 {[%clk 0:02:28]} 10. O-O {[%clk 0:02:10]}  Bg7 {[%clk 0:02:28]} 11. c3 {[%clk 0:02:04]}  O-O {[%clk 0:02:27]} 12. Re1 {[%clk 0:02:03]}  Re8 {[%clk 0:02:09]} 0-1


[Site "https://www.chess.com"]

[Event "Titled Tuesday Blitz July 13 2021"]
[White "Maevsky, Nikolay"]
[Black "Erdogdu, Mert"]
[WhiteFideId "4198220"]
[BlackFideId "6301495"]
[WhiteElo "2213"]
[BlackElo "2485"]
[Result "0-1"]
[Round "10"]
[TimeControl "180+1"]
[Date "2021.07.13"]
[WhiteClock "0:00:13"]
[BlackClock "0:00:17"]

1. d4 {[%clk 0:03:00]}  d5 {[%clk 0:02:58]} 2. Nf3 {[%clk 0:03:01]}  e6 {[%clk 0:02:59]} 3. e3 {[%clk 0:03:00]}  c5 {[%clk 0:02:59]} 4. b3 {[%clk 0:03:00]}  Nf6 {[%clk 0:02:59]} 5. Bb2 {[%clk 0:03:00]}  Nc6 {[%clk 0:02:59]} 6. Bd3 {[%clk 0:03:00]}  cxd4 {[%clk 0:02:58]} 7. exd4 {[%clk 0:03:00]}  Bb4+ {[%clk 0:02:56]} 8. Nbd2 {[%clk 0:02:58]}  O-O {[%clk 0:02:55]} 9. a3 {[%clk 0:02:57]}  Bd6 {[%clk 0:02:52]} 10. O-O {[%clk 0:02:56]}  b6 {[%clk 0:02:47]} 11. Ne5 {[%clk 0:02:51]}  Bb7 {[%clk 0:02:46]} 12. f4 {[%clk 0:02:45]}  Ne7 {[%clk 0:02:40]} 13. Qe2 {[%clk 0:02:43]}  Rc8 {[%clk 0:02:38]} 14. g4 {[%clk 0:02:29]}  Qc7 {[%clk 0:02:09]} 15. c3 {[%clk 0:02:29]}  Ng6 {[%clk 0:01:55]} 16. g5 {[%clk 0:01:59]}  Nd7 {[%clk 0:01:53]} 17. Nxg6 {[%clk 0:01:46]}  hxg6 {[%clk 0:01:49]} 18. Qg4 {[%clk 0:01:39]}  Rfe8 {[%clk 0:01:13]} 19. Rf3 {[%clk 0:01:34]}  Nb8 {[%clk 0:01:06]} 20. Re1 {[%clk 0:01:25]}  Ba6 {[%clk 0:01:06]} 21. Bb1 {[%clk 0:01:24]}  Nc6 {[%clk 0:01:00]} 22. Rh3 {[%clk 0:01:21]}  Bxf4 {[%clk 0:00:54]} 23. Qh4 {[%clk 0:01:01]}  Kf8 {[%clk 0:00:53]} 24. Nf3 {[%clk 0:00:38]}  Ne7 {[%clk 0:00:47]} 25. Qh8+ {[%clk 0:00:33]}  Ng8 {[%clk 0:00:46]} 26. Rh7 {[%clk 0:00:30]}  Ke7 {[%clk 0:00:45]} 27. Qxg7 {[%clk 0:00:30]}  Rf8 {[%clk 0:00:43]} 28. Qxg6 {[%clk 0:00:26]}  Bxh2+ {[%clk 0:00:28]} 29. Nxh2 {[%clk 0:00:25]}  Qg3+ {[%clk 0:00:29]} 30. Kh1 {[%clk 0:00:24]}  Qxe1+ {[%clk 0:00:27]} 31. Kg2 {[%clk 0:00:24]}  Qd2+ {[%clk 0:00:27]} 32. Kh1 {[%clk 0:00:23]}  Qxb2 {[%clk 0:00:25]} 33. Ng4 {[%clk 0:00:18]}  Qc1+ {[%clk 0:00:21]} 34. Kg2 {[%clk 0:00:18]}  Qd2+ {[%clk 0:00:20]} 35. Nf2 {[%clk 0:00:17]}  Qe2 {[%clk 0:00:17]} 36. Qg7 {[%clk 0:00:15]}  Rxc3 {[%clk 0:00:16]} 37. g6 {[%clk 0:00:15]}  Qf1+ {[%clk 0:00:16]} 38. Kh2 {[%clk 0:00:14]}  Qxf2+ {[%clk 0:00:16]} 39. Kh1 {[%clk 0:00:13]}  Rc1# {[%clk 0:00:17]} 0-1


[Site "https://www.chess.com"]

[Event "Titled Tuesday Blitz July 13 2021"]
[White "Mirzoev, Azer"]
[Black "Prraneeth Vuppala"]
[WhiteFideId "13400304"]
[BlackFideId "46622373"]
[WhiteElo "2525"]
[BlackElo "1759"]
[Result "1-0"]
[Round "10"]
[TimeControl "180+1"]
[Date "2021.07.13"]
[WhiteClock "0:00:51"]
[BlackClock "0:00:11"]

1. d4 {[%clk 0:02:59]}  Nf6 {[%clk 0:02:59]} 2. c4 {[%clk 0:02:58]}  g6 {[%clk 0:02:58]} 3. Nc3 {[%clk 0:02:59]}  d5 {[%clk 0:02:58]} 4. Nf3 {[%clk 0:02:58]}  Bg7 {[%clk 0:02:58]} 5. Bg5 {[%clk 0:02:58]}  Ne4 {[%clk 0:02:55]} 6. Bh4 {[%clk 0:02:58]}  Nxc3 {[%clk 0:02:50]} 7. bxc3 {[%clk 0:02:59]}  c5 {[%clk 0:02:48]} 8. e3 {[%clk 0:02:58]}  cxd4 {[%clk 0:02:46]} 9. cxd4 {[%clk 0:02:59]}  Nc6 {[%clk 0:02:35]} 10. Be2 {[%clk 0:02:48]}  O-O {[%clk 0:02:04]} 11. O-O {[%clk 0:02:46]}  Bf5 {[%clk 0:02:00]} 12. Qb3 {[%clk 0:02:40]}  Na5 {[%clk 0:01:54]} 13. Qb4 {[%clk 0:02:39]}  Re8 {[%clk 0:01:39]} 14. cxd5 {[%clk 0:02:32]}  Qxd5 {[%clk 0:01:35]} 15. Rfc1 {[%clk 0:02:31]}  b6 {[%clk 0:01:09]} 16. Qb5 {[%clk 0:02:22]}  Be4 {[%clk 0:01:02]} 17. Qxd5 {[%clk 0:02:01]}  Bxd5 {[%clk 0:01:03]} 18. Rc7 {[%clk 0:01:55]}  Rac8 {[%clk 0:00:57]} 19. Rxa7 {[%clk 0:01:52]}  Nc6 {[%clk 0:00:50]} 20. Ra6 {[%clk 0:01:43]}  e5 {[%clk 0:00:46]} 21. dxe5 {[%clk 0:01:39]}  Nxe5 {[%clk 0:00:33]} 22. Nxe5 {[%clk 0:01:37]}  Bxe5 {[%clk 0:00:33]} 23. Rd1 {[%clk 0:01:36]}  Rc2 {[%clk 0:00:20]} 24. Bb5 {[%clk 0:01:27]}  Rec8 {[%clk 0:00:16]} 25. Rxd5 {[%clk 0:01:07]}  Rc1+ {[%clk 0:00:14]} 26. Bf1 {[%clk 0:01:05]}  Ra1 {[%clk 0:00:10]} 27. Rxe5 {[%clk 0:00:51]}  Rcc1 {[%clk 0:00:11]} 28. g4 {[%clk 0:00:51]}  Rxf1+ {[%clk 0:00:11]} 29. Kg2 {[%clk 0:00:51]} 1-0


[Site "https://www.chess.com"]

[Event "Titled Tuesday Blitz July 13 2021"]
[White "Musovic, Armin"]
[Black "Ozen, Bahadir"]
[WhiteFideId "939935"]
[BlackFideId "6337058"]
[WhiteElo "2250"]
[BlackElo "2503"]
[Result "0-1"]
[Round "10"]
[TimeControl "180+1"]
[Date "2021.07.13"]
[WhiteClock "0:00:08"]
[BlackClock "0:00:07"]

1. a3 {[%clk 0:03:00]}  c6 {[%clk 0:02:56]} 2. Nc3 {[%clk 0:03:01]}  d5 {[%clk 0:02:56]} 3. e4 {[%clk 0:03:02]}  dxe4 {[%clk 0:02:56]} 4. Nxe4 {[%clk 0:03:02]}  Bf5 {[%clk 0:02:56]} 5. Ng3 {[%clk 0:03:03]}  Bg6 {[%clk 0:02:56]} 6. f4 {[%clk 0:03:03]}  e6 {[%clk 0:02:56]} 7. Nf3 {[%clk 0:03:04]}  Nd7 {[%clk 0:02:53]} 8. d4 {[%clk 0:03:04]}  Qc7 {[%clk 0:02:38]} 9. Bd3 {[%clk 0:02:58]}  Bxd3 {[%clk 0:02:37]} 10. Qxd3 {[%clk 0:02:54]}  g6 {[%clk 0:02:36]} 11. O-O {[%clk 0:02:50]}  Ne7 {[%clk 0:02:32]} 12. Ne5 {[%clk 0:02:09]}  Bg7 {[%clk 0:02:28]} 13. Bd2 {[%clk 0:02:08]}  O-O {[%clk 0:02:25]} 14. Rae1 {[%clk 0:02:05]}  Rad8 {[%clk 0:02:24]} 15. Qe2 {[%clk 0:01:46]}  Nf6 {[%clk 0:02:20]} 16. c3 {[%clk 0:01:45]}  Nf5 {[%clk 0:02:19]} 17. Ne4 {[%clk 0:01:41]}  Nxe4 {[%clk 0:02:18]} 18. Qxe4 {[%clk 0:01:41]}  c5 {[%clk 0:02:15]} 19. g4 {[%clk 0:01:41]}  Nd6 {[%clk 0:02:14]} 20. Qg2 {[%clk 0:01:37]}  cxd4 {[%clk 0:02:12]} 21. cxd4 {[%clk 0:01:38]}  Nb5 {[%clk 0:01:59]} 22. Bb4 {[%clk 0:01:37]}  Rfe8 {[%clk 0:01:56]} 23. f5 {[%clk 0:01:37]}  exf5 {[%clk 0:01:53]} 24. gxf5 {[%clk 0:01:34]}  Nxd4 {[%clk 0:01:26]} 25. fxg6 {[%clk 0:01:21]}  fxg6 {[%clk 0:01:11]} 26. Ng4 {[%clk 0:00:21]}  Rxe1 {[%clk 0:00:58]} 27. Bxe1 {[%clk 0:00:21]}  Nf5 {[%clk 0:00:43]} 28. Kh1 {[%clk 0:00:19]}  Qc6 {[%clk 0:00:39]} 29. Qxc6 {[%clk 0:00:19]}  bxc6 {[%clk 0:00:39]} 30. b4 {[%clk 0:00:19]}  Rd3 {[%clk 0:00:31]} 31. a4 {[%clk 0:00:17]}  Ra3 {[%clk 0:00:29]} 32. a5 {[%clk 0:00:18]}  Ra1 {[%clk 0:00:29]} 33. Rg1 {[%clk 0:00:18]}  Bd4 {[%clk 0:00:27]} 34. Bf2 {[%clk 0:00:19]}  Ra4 {[%clk 0:00:21]} 35. Bxd4 {[%clk 0:00:18]}  Nxd4 {[%clk 0:00:22]} 36. Rb1 {[%clk 0:00:16]}  Nc2 {[%clk 0:00:22]} 37. Nf6+ {[%clk 0:00:16]}  Kf7 {[%clk 0:00:20]} 38. Nxh7 {[%clk 0:00:16]}  Rxb4 {[%clk 0:00:20]} 39. Rc1 {[%clk 0:00:16]}  Nd4 {[%clk 0:00:20]} 40. Ng5+ {[%clk 0:00:15]}  Ke7 {[%clk 0:00:19]} 41. Re1+ {[%clk 0:00:14]}  Kd7 {[%clk 0:00:18]} 42. Nf7 {[%clk 0:00:14]}  c5 {[%clk 0:00:13]} 43. Ne5+ {[%clk 0:00:14]}  Kd6 {[%clk 0:00:13]} 44. Nxg6 {[%clk 0:00:13]}  c4 {[%clk 0:00:14]} 45. Rd1 {[%clk 0:00:13]}  c3 {[%clk 0:00:13]} 46. Nh4 {[%clk 0:00:08]}  c2 {[%clk 0:00:09]} 47. Rg1 {[%clk 0:00:05]}  Rb1 {[%clk 0:00:08]} 48. h3 {[%clk 0:00:06]}  Rxg1+ {[%clk 0:00:08]} 49. Kxg1 {[%clk 0:00:07]}  c1=Q+ {[%clk 0:00:07]} 50. Kg2 {[%clk 0:00:08]}  Qg5+ {[%clk 0:00:07]} 0-1


[Site "https://www.chess.com"]

[Event "Titled Tuesday Blitz July 13 2021"]
[White "Nabaty, Tamir"]
[Black "Quparadze, Giga"]
[WhiteFideId "2809052"]
[BlackFideId "13602250"]
[WhiteElo "2627"]
[BlackElo "2658"]
[Result "0-1"]
[Round "10"]
[TimeControl "180+1"]
[Date "2021.07.13"]
[WhiteClock "0:02:05"]
[BlackClock "0:02:15"]

1. Nf3 {[%clk 0:03:00]}  c5 {[%clk 0:02:59]} 2. b3 {[%clk 0:02:59]}  d6 {[%clk 0:02:58]} 3. Bb2 {[%clk 0:03:00]}  e5 {[%clk 0:02:58]} 4. g3 {[%clk 0:03:00]}  g6 {[%clk 0:02:55]} 5. Bg2 {[%clk 0:02:59]}  Bg7 {[%clk 0:02:56]} 6. O-O {[%clk 0:03:00]}  Nc6 {[%clk 0:02:55]} 7. c4 {[%clk 0:03:00]}  Nge7 {[%clk 0:02:55]} 8. e3 {[%clk 0:03:00]}  O-O {[%clk 0:02:54]} 9. Nc3 {[%clk 0:02:58]}  Bf5 {[%clk 0:02:47]} 10. d3 {[%clk 0:02:57]}  Nb4 {[%clk 0:02:44]} 11. Ne1 {[%clk 0:02:57]}  Qd7 {[%clk 0:02:42]} 12. a3 {[%clk 0:02:56]}  Nbc6 {[%clk 0:02:41]} 13. Nc2 {[%clk 0:02:56]}  Bg4 {[%clk 0:02:38]} 14. Qd2 {[%clk 0:02:55]}  Bh3 {[%clk 0:02:38]} 15. Rad1 {[%clk 0:02:48]}  Bxg2 {[%clk 0:02:37]} 16. Kxg2 {[%clk 0:02:49]}  d5 {[%clk 0:02:36]} 17. e4 {[%clk 0:02:44]}  dxc4 {[%clk 0:02:29]} 18. bxc4 {[%clk 0:02:34]}  Nd4 {[%clk 0:02:26]} 19. Nxd4 {[%clk 0:02:34]}  exd4 {[%clk 0:02:25]} 20. Nd5 {[%clk 0:02:29]}  Nxd5 {[%clk 0:02:25]} 21. exd5 {[%clk 0:02:20]}  b5 {[%clk 0:02:18]} 22. Rfe1 {[%clk 0:02:16]}  bxc4 {[%clk 0:02:17]} 23. dxc4 {[%clk 0:02:16]}  Qa4 {[%clk 0:02:17]} 24. Qd3 {[%clk 0:02:10]}  Rab8 {[%clk 0:02:16]} 25. Bc1 {[%clk 0:02:05]}  Rb3 {[%clk 0:02:16]} 26. Qc2 {[%clk 0:02:05]}  Rxg3+ {[%clk 0:02:15]} 0-1


[Site "https://www.chess.com"]

[Event "Titled Tuesday Blitz July 13 2021"]
[White "Najdin, Danil"]
[Black "Hamley, Ryan"]
[WhiteFideId "4172426"]
[BlackFideId "30959497"]
[WhiteElo "2193"]
[BlackElo "2394"]
[Result "0-1"]
[Round "10"]
[TimeControl "180+1"]
[Date "2021.07.13"]
[WhiteClock "0:00:01"]
[BlackClock "0:00:32"]

1. e4 {[%clk 0:03:00]}  c5 {[%clk 0:02:57]} 2. Nf3 {[%clk 0:03:00]}  d6 {[%clk 0:02:57]} 3. d4 {[%clk 0:02:59]}  cxd4 {[%clk 0:02:58]} 4. Nxd4 {[%clk 0:03:00]}  Nf6 {[%clk 0:02:59]} 5. Nc3 {[%clk 0:03:00]}  a6 {[%clk 0:02:59]} 6. Bc4 {[%clk 0:02:59]}  e6 {[%clk 0:02:59]} 7. Bg5 {[%clk 0:02:47]}  Be7 {[%clk 0:02:58]} 8. Bb3 {[%clk 0:02:40]}  b5 {[%clk 0:02:57]} 9. f4 {[%clk 0:02:31]}  Bb7 {[%clk 0:02:41]} 10. e5 {[%clk 0:02:14]}  dxe5 {[%clk 0:02:38]} 11. fxe5 {[%clk 0:02:14]}  Nd5 {[%clk 0:02:31]} 12. Bxe7 {[%clk 0:02:11]}  Qxe7 {[%clk 0:02:27]} 13. O-O {[%clk 0:02:09]}  Nxc3 {[%clk 0:02:25]} 14. bxc3 {[%clk 0:02:08]}  O-O {[%clk 0:02:25]} 15. c4 {[%clk 0:02:00]}  Rd8 {[%clk 0:02:20]} 16. c3 {[%clk 0:01:56]}  Nc6 {[%clk 0:02:16]} 17. cxb5 {[%clk 0:01:53]}  axb5 {[%clk 0:02:14]} 18. Nxc6 {[%clk 0:01:27]}  Bxc6 {[%clk 0:02:10]} 19. Qh5 {[%clk 0:01:19]}  Rd2 {[%clk 0:02:02]} 20. Rf2 {[%clk 0:01:11]}  Rxf2 {[%clk 0:02:01]} 21. Kxf2 {[%clk 0:01:11]}  Qc5+ {[%clk 0:02:02]} 22. Kf1 {[%clk 0:01:07]}  Qxc3 {[%clk 0:01:56]} 23. Rd1 {[%clk 0:01:04]}  Rf8 {[%clk 0:01:41]} 24. Qg5 {[%clk 0:00:59]}  Be4 {[%clk 0:01:32]} 25. Rd8 {[%clk 0:00:51]}  Qc7 {[%clk 0:01:29]} 26. Rd4 {[%clk 0:00:38]}  Bg6 {[%clk 0:01:25]} 27. h4 {[%clk 0:00:31]}  h6 {[%clk 0:01:24]} 28. Qg3 {[%clk 0:00:29]}  Rd8 {[%clk 0:01:24]} 29. Rxd8+ {[%clk 0:00:24]}  Qxd8 {[%clk 0:01:24]} 30. Kg1 {[%clk 0:00:23]}  Qd4+ {[%clk 0:01:22]} 31. Kh2 {[%clk 0:00:23]}  Be4 {[%clk 0:01:16]} 32. Qf4 {[%clk 0:00:17]}  Qd3 {[%clk 0:01:09]} 33. Qf2 {[%clk 0:00:13]}  Bd5 {[%clk 0:00:57]} 34. Bxd5 {[%clk 0:00:10]}  Qxd5 {[%clk 0:00:56]} 35. Qe2 {[%clk 0:00:08]}  Qc4 {[%clk 0:00:57]} 36. Qf2 {[%clk 0:00:07]}  h5 {[%clk 0:00:54]} 37. g3 {[%clk 0:00:05]}  Qe4 {[%clk 0:00:54]} 38. Qc5 {[%clk 0:00:04]}  Qe2+ {[%clk 0:00:51]} 39. Kg1 {[%clk 0:00:04]}  Kh7 {[%clk 0:00:49]} 40. a3 {[%clk 0:00:03]}  Qb2 {[%clk 0:00:45]} 41. Kh1 {[%clk 0:00:02]}  Kg6 {[%clk 0:00:44]} 42. Qe3 {[%clk 0:00:02]}  Qb1+ {[%clk 0:00:43]} 43. Kh2 {[%clk 0:00:02]}  Qf5 {[%clk 0:00:43]} 44. Qc5 {[%clk 0:00:01]}  Qc2+ {[%clk 0:00:32]} 45. Kh3 {[%clk 0:00:01]}  Qxc5 {[%clk 0:00:32]} 0-1


[Site "https://www.chess.com"]

[Event "Titled Tuesday Blitz July 13 2021"]
[White "Nguyen, Quoc Hy"]
[Black "Dobrowolski, Piotr"]
[WhiteFideId "12410853"]
[BlackFideId "1106236"]
[WhiteElo "1975"]
[BlackElo "2304"]
[Result "1-0"]
[Round "10"]
[TimeControl "180+1"]
[Date "2021.07.13"]
[WhiteClock "0:00:12"]
[BlackClock "0:00:02"]

1. d4 {[%clk 0:03:00]}  e6 {[%clk 0:02:59]} 2. c4 {[%clk 0:03:01]}  c5 {[%clk 0:02:59]} 3. d5 {[%clk 0:03:00]}  exd5 {[%clk 0:02:59]} 4. cxd5 {[%clk 0:03:00]}  d6 {[%clk 0:02:59]} 5. Nc3 {[%clk 0:03:00]}  g6 {[%clk 0:03:00]} 6. h4 {[%clk 0:02:58]}  Nf6 {[%clk 0:02:58]} 7. Bg5 {[%clk 0:02:52]}  Bg7 {[%clk 0:02:57]} 8. h5 {[%clk 0:02:51]}  O-O {[%clk 0:02:56]} 9. Qd2 {[%clk 0:02:47]}  b5 {[%clk 0:02:49]} 10. Nxb5 {[%clk 0:02:38]}  Ba6 {[%clk 0:02:46]} 11. Nc3 {[%clk 0:02:37]}  Nbd7 {[%clk 0:02:46]} 12. e4 {[%clk 0:02:29]}  Bxf1 {[%clk 0:02:35]} 13. Kxf1 {[%clk 0:02:30]}  Re8 {[%clk 0:02:35]} 14. Nf3 {[%clk 0:02:20]}  Rb8 {[%clk 0:02:30]} 15. Re1 {[%clk 0:02:14]}  Qb6 {[%clk 0:02:18]} 16. hxg6 {[%clk 0:02:14]}  fxg6 {[%clk 0:02:03]} 17. Re2 {[%clk 0:02:11]}  Ng4 {[%clk 0:01:44]} 18. Rh4 {[%clk 0:01:41]}  h5 {[%clk 0:01:41]} 19. Kg1 {[%clk 0:01:34]}  Rf8 {[%clk 0:01:40]} 20. Bf4 {[%clk 0:01:21]}  Rf7 {[%clk 0:00:57]} 21. Rh3 {[%clk 0:00:49]}  Rbf8 {[%clk 0:00:35]} 22. Be3 {[%clk 0:00:48]}  Rxf3 {[%clk 0:00:31]} 23. Rxf3 {[%clk 0:00:46]}  Rxf3 {[%clk 0:00:30]} 24. gxf3 {[%clk 0:00:46]}  Nde5 {[%clk 0:00:31]} 25. Kg2 {[%clk 0:00:43]}  Nxf3 {[%clk 0:00:14]} 26. Kxf3 {[%clk 0:00:37]}  Qd8 {[%clk 0:00:14]} 27. Bg5 {[%clk 0:00:31]}  Qf8+ {[%clk 0:00:14]} 28. Kg2 {[%clk 0:00:31]}  Be5 {[%clk 0:00:13]} 29. f4 {[%clk 0:00:30]}  Bd4 {[%clk 0:00:12]} 30. Nd1 {[%clk 0:00:23]}  Qc8 {[%clk 0:00:12]} 31. Ne3 {[%clk 0:00:19]}  Nxe3+ {[%clk 0:00:10]} 32. Rxe3 {[%clk 0:00:19]}  h4 {[%clk 0:00:08]} 33. Qe2 {[%clk 0:00:15]}  Bxe3 {[%clk 0:00:07]} 34. Qxe3 {[%clk 0:00:16]}  Qg4+ {[%clk 0:00:07]} 35. Kh2 {[%clk 0:00:17]}  h3 {[%clk 0:00:06]} 36. Qf2 {[%clk 0:00:14]}  c4 {[%clk 0:00:05]} 37. Qg3 {[%clk 0:00:13]}  Qe2+ {[%clk 0:00:05]} 38. Kxh3 {[%clk 0:00:13]}  Qh5+ {[%clk 0:00:05]} 39. Kg2 {[%clk 0:00:12]}  Qe2+ {[%clk 0:00:05]} 40. Qf2 {[%clk 0:00:13]}  Qxe4+ {[%clk 0:00:06]} 41. Kg3 {[%clk 0:00:13]}  Qxd5 {[%clk 0:00:06]} 42. Qe3 {[%clk 0:00:13]}  c3 {[%clk 0:00:01]} 43. bxc3 {[%clk 0:00:11]}  Qxa2 {[%clk 0:00:01]} 44. Qe8+ {[%clk 0:00:11]}  Kg7 {[%clk 0:00:02]} 45. Qe7+ {[%clk 0:00:12]}  Kg8 {[%clk 0:00:02]} 46. Bf6 {[%clk 0:00:12]} 1-0


[Site "https://www.chess.com"]